{"text_format":"1","workbook":"xlsx","n_sheets":1,"sheets":["Sheet1"],"not_rendered":{"charts":1,"images":2,"macros":1,"external_links":0,"defined_names":1,"comments":1,"pivot_tables":0},"unopened":[],"bounds":{"document_bytes":16777216,"sheet_cells":100000,"rows_first":2000,"rows_last":500,"rows_between":2000,"halvings":0,"cell_chars":16384,"cell_head_chars":4096},"cells_cut":0,"cells_raw":0,"read":"whole","date_system":"1900"}

{"sheet":"Sheet1","index":0,"n_rows":49,"n_cols":25,"rows_kept":49,"cut":false,"hidden":false,"merged":[[23,0,23,3],[25,0,25,1],[26,0,26,1],[27,0,27,1],[25,2,25,5],[27,2,27,13],[26,2,26,12],[23,4,23,5],[7,18,7,19],[30,8,30,10],[31,8,31,10],[30,11,30,13],[28,2,28,13],[29,2,29,13],[27,14,27,20],[31,0,31,7],[16,20,16,22],[29,0,29,1],[36,6,36,7],[25,15,25,23],[31,14,31,16],[30,20,30,23],[31,20,31,23],[25,9,25,14],[29,14,29,20],[26,13,26,23],[30,14,30,16],[29,21,29,23],[36,12,36,13],[35,21,35,23],[35,10,35,11],[36,10,36,11],[35,12,35,13],[35,14,35,16],[36,14,36,16],[36,21,36,23],[28,0,28,1],[2,0,2,3],[28,14,28,20],[27,21,27,23],[28,21,28,23],[8,20,8,22],[9,20,9,22],[10,20,10,22],[15,20,15,22],[4,0,4,3],[2,25,2,27],[11,20,11,22],[12,20,12,22],[5,0,5,3],[5,4,5,23],[3,0,3,3],[3,4,3,11],[3,12,3,15],[3,16,3,23],[4,4,4,23],[2,4,2,11],[2,12,2,15],[2,16,2,23],[1,0,1,3],[1,4,1,11],[1,12,1,15],[1,16,1,23],[30,0,30,7],[30,17,30,19],[31,11,31,13],[32,0,32,6],[32,7,32,23],[31,17,31,19],[34,0,34,1],[43,0,43,23],[45,0,45,23],[44,0,44,23],[42,1,42,2],[37,0,37,6],[37,7,37,23],[36,8,36,9],[35,6,35,7],[34,2,34,23],[35,0,35,5],[35,8,35,9],[48,0,48,3],[42,3,42,23],[46,0,46,23],[40,0,40,23],[39,0,39,23],[36,0,36,5],[35,17,35,20],[36,17,36,20],[22,20,22,21],[21,20,21,22],[7,20,7,23],[17,20,17,22],[18,20,18,22],[19,20,19,22],[20,20,20,22],[13,20,13,22],[14,20,14,22]]}
[]
["Appliant:",null,null,null,null,null,null,null,null,null,null,null,"Reviewed By:"]
["Job No.:",null,null,null,null,null,null,null,null,null,null,null,"Tested By:"]
["Product:",null,null,null,null,null,null,null,null,null,null,null,"Test Date:"]
["Model No. :"]
["Sample ID:"]
[]
[null,null,null,null,null,null,null,null,null,null,null,null,null,null,null,null,null,null,"Time(s)",null,"Hot resistance ",null,null,null,"辅助列"]
[null,null,null,null,null,null,null,null,null,null,null,null,null,null,null,null,null,null,null,5,98.111000000000004,null,null,"(Ω)",{"$f":"ISBLANK(T9)","v":false}]
[null,null,null,null,null,null,null,null,null,null,null,null,null,null,null,null,null,null,null,10,96.495999999999995,null,null,"(Ω)",{"$f":"ISBLANK(T10)","v":false}]
[null,null,null,null,null,null,null,null,null,null,null,null,null,null,null,null,null,null,null,15,95.251000000000005,null,null,"(Ω)",false]
[null,null,null,null,null,null,null,null,null,null,null,null,null,null,null,null,null,null,null,20,94.495999999999995,null,null,"(Ω)",false]
[null,null,null,null,null,null,null,null,null,null,null,null,null,null,null,null,null,null,null,25,94.375,null,null,"(Ω)",false]
[null,null,null,null,null,null,null,null,null,null,null,null,null,null,null,null,null,null,null,30,94.203000000000003,null,null,"(Ω)",false]
[null,null,null,null,null,null,null,null,null,null,null,null,null,null,null,null,null,null,null,35,94.072000000000003,null,null,"(Ω)",false]
[null,null,null,null,null,null,null,null,null,null,null,null,null,null,null,null,null,null,null,null,null,null,null,"(Ω)",true]
[null,null,null,null,null,null,null,null,null,null,null,null,null,null,null,null,null,null,null,null,null,null,null,"(Ω)",true]
[null,null,null,null,null,null,null,null,null,null,null,null,null,null,null,null,null,null,null,null,null,null,null,"(Ω)",true]
[null,null,null,null,null,null,null,null,null,null,null,null,null,null,null,null,null,null,null,null,null,null,null,"(Ω)",true]
[null,null,null,null,null,null,null,null,null,null,null,null,null,null,null,null,null,null,null,null,null,null,null,"(Ω)",true]
[null,null,null,null,null,null,null,null,null,null,null,null,null,null,null,null,null,null,null,null,null,null,null,"(Ω)",true]
[null,null,null,null,null,null,null,null,null,null,null,null,null,null,null,null,null,null,null,null,null,null,null,"(Ω)",true]
[null,null,null,null,null,null,null,null,null,null,null,null,null,null,null,null,null,null,null,null,null,null,null,null,{"$f":"MATCH(TRUE,Y9:Y22,0)","v":8}]
["Climate class:",null,null,null,"Normal"]
[]
["Clause",null,"Test condition:",null,null,null,null,null,null,null,null,null,null,null,null,"Highest speed of fan motor"]
[11,null,"TABLE: Heating test resistance method",null,null,null,null,null,null,null,null,null,null,"normal operation"]
[null,null,"Test voltage (V)………………………………………….:",null,null,null,null,null,null,null,null,null,null,null,null,null,null,null,null,null,null,"----"]
[null,null,"Ambient, t1 (ºC)………………………………………….:",null,null,null,null,null,null,null,null,null,null,null,25,null,null,null,null,null,null,"----"]
[null,null,"Ambient, t2 (ºC)………………………………………….:",null,null,null,null,null,null,null,null,null,null,null,25,null,null,null,null,null,null,"----"]
["Temperature of winding",null,null,null,null,null,null,null,"R1 (Ω)",null,null,"R2 (Ω)",null,null,"dT (K)",null,null,"Max. dT (K)",null,null,"Insulation class"]
["Aux. winding of motor",null,null,null,null,null,null,null,78.760000000000005,null,null,{"$f":"INDEX(LINEST(OFFSET(U9,0,0,Y23-1,1),OFFSET(T9,0,0,Y23-1,1)^{1,2,3,4},TRUE,TRUE),1,5)","v":99.928571428571416},null,null,{"$f":"((L32-I32)/I32)*(B43+O29)-(O30-O29)","v":69.746626278749133}]
["Supplementary information: "]
[]
[{"$f":"A27","v":11},null,{"$f":"C27&\", \"&N27","v":"TABLE: Heating test resistance method, normal operation"}]
["Temperature of winding",null,null,null,null,null,"R1 (Ω)",null,"R2 (Ω)",null,"dT (K)",null,"T (ºC)",null,"Max. T (ºC)",null,null,"Insulation class",null,null,null,"Corrected \nT (ºC)"]
[{"$f":"IF(A32=\"\",\"\",A32)","v":"Aux. winding of motor"},null,null,null,null,null,{"$f":"I32","v":78.760000000000005},null,{"$f":"L32","v":99.928571428571416},null,{"$f":"O32","v":69.746626278749133},null,{"$f":"O32+O30","v":94.746626278749133},null,null,null,null,{"$f":"IF(U32=\"\",\"\",U32)","v":""},null,null,null,{"$f":"O32+25","v":94.746626278749133}]
["Supplementary information: ",null,null,null,null,null,null,{"$f":"IF(H33=\"\",\"\",H33)","v":""}]
[]
["R1 is the cold resistance of the winding; R2 is the hot resistance of the winding;"]
["T1 is room temperature at the beginning of the test in °C; T2 is room temperature at the end the test in °C;"]
[]
["K=",234.5,null,"(Please check K data in this position according to below comment)"]
["225 for aluminium windings and copper/aluminium windings with an aluminium content ≥ 85 %,"]
["229,75 for copper/aluminium windings with an copper content > 15 % to < 85 %,"]
["234,5 for copper windings and copper/aluminium windings with an copper content ≥ 85 %;"]
["(Values of the constant K for other must be determined. )"]
[]
["Remark:"]